bitfinex/quotes_SOLUSD_20250912
["timestamp","ask_amount","ask_price","bid_price","bid_amount"]
[1757653560862,49.54089115,237.74,237.73,0.03]
[1757653561232,58.92089115,237.74,237.73,0.03]
[1757653566138,58.91660946,237.74,237.73,0.03]
[1757653566863,57.01603587,237.74,237.73,0.03]
[1757653567161,58.91660946,237.74,237.73,0.03]
[1757653567343,13.59559401,237.71,237.7,0.03]
[1757653567545,39.59559401,237.69,237.68,0.03]
[1757653567750,79.9703337,237.69,237.68,0.03]
[1757653568059,80.6703337,237.69,237.68,0.03]
[1757653568771,84.01482224,237.69,237.68,0.03]
[1757653569356,88.22198282,237.69,237.68,0.03]
[1757653570072,52.87760115,237.69,237.68,0.03]
[1757653570274,88.21760115,237.69,237.68,0.03]
[1757653572173,84.87311261,237.69,237.68,0.03]
[1757653572351,108.28642933,237.69,237.68,0.03]
[1757653572546,84.87311261,237.69,237.68,0.03]
[1757653572752,84.85311261,237.69,237.68,0.03]
[1757653572977,49.53311261,237.69,237.68,0.03]
[1757653573181,21.03137881,237.74,237.68,0.03]
[1757653573182,1.90057359,237.73,237.68,0.5]
[1757653573476,0.7,237.76,237.69,0.47]
[1757653573477,35.32,237.76,237.69,0.47]
[1757653574182,1.9005736,237.77,237.7,4.20698359]
[1757653574379,1.9005736,237.77,237.71,0.47]
[1757653574678,37.22057359,237.76,237.69,0.47]
[1757653574977,35.32,237.76,237.71,0.47]
[1757653575284,41.40634674,237.77,237.68,14.75557608]
[1757653575481,1.90057359,237.76,237.71,0.47]
[1757653576072,1.90057359,237.76,237.68,0.03]
[1757653576275,6.16687436,237.74,237.68,0.03]
[1757653576852,1.96057359,237.74,237.68,0.03]
[1757653577669,1.96057359,237.74,237.69,0.47]
[1757653577670,0.06,237.74,237.69,0.47]
[1757653578543,0.06,237.74,237.7,4.20698359]
[1757653578750,0.06,237.74,237.71,0.47]
[1757653579063,0.06,237.74,237.72,0.47]
[1757653579445,0.06,237.74,237.7,19.4317513]
[1757653579679,0.06,237.74,237.7,4.67698359]
[1757653579979,0.06,237.74,237.71,0.47]
[1757653580482,1.96057359,237.74,237.69,0.47]
[1757653581475,0.06,237.74,237.69,0.47]
[1757653582265,0.06,237.74,237.71,26.0]
[1757653582487,0.06,237.74,237.72,4.67662964]
[1757653582852,0.06,237.74,237.72,4.20662964]
[1757653583070,0.06,237.74,237.73,0.47]
[1757653583475,0.06,237.74,237.73,2.15247492]
[1757653585769,1e-08,237.77,237.76,26.0]
[1757653586298,1e-08,237.77,237.76,26.47]
[1757653586672,1e-08,237.77,237.76,32.35825533]
[1757653587587,1e-08,237.77,237.76,31.88825533]
[1757653587771,1e-08,237.77,237.76,32.35825533]
[1757653589099,1e-08,237.77,237.76,31.88825533]
[1757653591194,1e-08,237.77,237.76,30.67592193]
[1757653591364,1e-08,237.77,237.76,30.20592193]
[1757653591563,1e-08,237.77,237.76,31.88804309]
[1757653596063,1e-08,237.77,237.76,32.35804309]
[1757653596369,1e-08,237.77,237.76,31.88804309]
[1757653598180,0.06,237.8,237.79,26.0]
[1757653598383,0.06,237.8,237.79,35.16]
[1757653598584,0.06,237.82,237.81,26.0]
[1757653599393,0.06,237.82,237.81,27.68176754]
[1757653600388,0.06,237.82,237.81,31.88680517]
[1757653600990,0.78,237.82,237.77,4.20574504]
[1757653601293,0.72,237.81,237.77,4.20574504]
[1757653601470,0.72,237.8,237.77,4.20574504]
[1757653601669,0.72,237.79,237.77,4.20574504]
[1757653601893,0.06,237.82,237.77,16.40237029]
[1757653602197,0.72,237.81,237.77,16.40237029]
[1757653602374,0.72,237.8,237.77,14.72010765]
[1757653602575,0.06,237.82,237.78,4.20414664]
[1757653602785,0.06,237.82,237.78,4.67414664]
[1757653603568,0.72,237.81,237.78,4.20414664]
[1757653603797,0.06,237.82,237.78,4.20414664]
[1757653604093,0.78,237.82,237.78,4.20414664]
[1757653604304,0.78,237.82,237.79,4.20539131]
[1757653604480,0.78,237.82,237.79,14.71886958]
[1757653604674,0.06,237.82,237.79,14.71886958]
[1757653605000,0.78,237.82,237.79,14.71886958]
[1757653605200,0.06,237.82,237.79,14.71886958]
[1757653605573,0.06,237.82,237.8,3.06785612]
[1757653606399,0.06,237.82,237.81,4.20503763]
[1757653607110,0.06,237.82,237.81,5.88694659]
[1757653612291,0.78,237.82,237.81,4.20503763]
[1757653613417,0.78,237.82,237.8,0.03]
[1757653613599,3.68785612,237.81,237.8,0.03]
[1757653613998,0.72,237.81,237.8,0.03]
[1757653614204,3.68785612,237.81,237.8,0.03]
[1757653617112,0.72,237.81,237.8,0.03]
[1757653617306,3.68785612,237.81,237.8,0.03]
[1757653618424,6.82044479,237.81,237.8,0.03]
[1757653620899,6.82044479,237.81,237.77,0.03]
[1757653620900,13.59559401,237.79,237.77,0.03]
[1757653621100,39.59559401,237.76,237.75,0.03]
[1757653621309,2.96785612,237.7,237.68,0.03]
[1757653621816,0.71,237.69,237.68,0.03]
[1757653624211,0.71,237.73,237.68,0.03]
[1757653624404,3.84507929,237.75,237.68,0.59]
[1757653624603,0.71,237.75,237.68,0.03]
[1757653625534,2.96785612,237.74,237.68,0.03]
[1757653625711,6.10273749,237.74,237.68,0.03]
[1757653625909,0.71,237.73,237.68,0.03]
[1757653626316,0.71,237.72,237.68,0.03]
[1757653626725,3.13522944,237.74,237.68,0.03]
[1757653626924,0.71,237.75,237.68,0.03]
[1757653628622,0.77,237.75,237.68,0.03]
[1757653629338,2.96785612,237.74,237.68,0.03]
[1757653629531,6.10233856,237.74,237.68,0.03]
[1757653629738,0.71,237.73,237.68,0.03]
[1757653630027,3.84448244,237.73,237.68,0.03]
[1757653630217,0.71,237.73,237.68,0.03]
[1757653631345,0.06,237.75,237.68,0.59]
[1757653631936,0.06,237.75,237.69,14.72506204]
[1757653632121,0.06,237.75,237.7,0.56]
[1757653632323,0.06,237.75,237.71,0.56]
[1757653632636,0.06,237.75,237.72,26.56]
[1757653632811,0.06,237.75,237.72,28.24247492]
[1757653634322,0.06,237.75,237.73,4.20645269]
[1757653634527,0.06,237.75,237.73,5.88892761]
[1757653636126,0.06,237.75,237.73,6.44892761]
[1757653638138,0.06,237.75,237.73,5.88892761]
[1757653638544,0.77,237.75,237.73,5.88892761]
[1757653638730,0.06,237.75,237.73,5.88892761]
[1757653639829,0.06,237.75,237.73,4.20645269]
[1757653640329,0.71,237.74,237.73,4.20645269]
[1757653641027,0.06,237.75,237.73,4.20645269]
[1757653641415,0.06,237.75,237.73,4.76645269]
[1757653642216,0.06,237.75,237.74,1.68240416]
[1757653642425,0.06,237.75,237.74,37.16240416]
[1757653642731,0.06,237.78,237.77,26.0]
[1757653643119,0.06,237.78,237.77,26.56]
[1757653643526,0.06,237.78,237.77,28.24212115]
[1757653644141,0.06,237.78,237.77,67.34786619]
[1757653645248,0.06,237.78,237.77,66.78786619]
[1757653648142,0.06,237.78,237.77,67.34786619]
[1757653648344,0.06,237.78,237.77,66.78786619]
[1757653651254,0.06,237.78,237.77,31.88786619]
[1757653651432,0.06,237.78,237.77,66.76786619]
[1757653652354,0.06,237.78,237.77,66.74786619]
[1757653652653,0.06,237.78,237.77,31.88786619]
[1757653652858,0.06,237.78,237.77,66.74786619]
[1757653653556,0.06,237.78,237.77,31.88786619]
[1757653653854,0.06,237.78,237.77,66.74786619]
[1757653654259,0.06,237.82,237.8,26.0]
[1757653654761,0.06,237.82,237.81,34.84]
[1757653654939,0.06,237.82,237.81,36.52190897]
[1757653655954,0.06,237.82,237.81,40.7269466]
[1757653658362,0.75,237.82,237.81,4.20503763]
[1757653666380,0.75,237.82,237.78,34.78]
[1757653666582,1e-08,237.82,237.79,0.56]
[1757653666750,1e-08,237.82,237.81,27.6821919]
[1757653667972,1e-08,237.82,237.81,31.88722953]
[1757653668158,1e-08,237.82,237.81,66.64722953]
[1757653668362,1e-08,237.82,237.81,67.20722953]
[1757653669289,1e-08,237.82,237.81,32.44722953]
[1757653669489,1e-08,237.82,237.81,67.20722953]
[1757653669849,1e-08,237.82,237.81,66.64722953]
[1757653671572,0.69000001,237.82,237.81,66.62722953]
[1757653672096,1e-08,237.82,237.81,67.18722953]
[1757653672459,0.06,237.85,237.82,13.59559401]
[1757653672460,1e-08,237.85,237.82,13.59559401]
[1757653672689,1e-08,237.85,237.84,13.59559401]
[1757653673064,1e-08,237.85,237.84,15.83693741]
[1757653673278,1e-08,237.85,237.84,36.9813434]
[1757653673477,1e-08,237.85,237.84,31.88585063]
[1757653673672,1e-08,237.85,237.84,40.62585063]
[1757653674083,1e-08,237.85,237.84,41.18585063]
[1757653674609,1e-08,237.85,237.84,40.62585063]
[1757653675095,1e-08,237.85,237.84,5.88585063]
[1757653675290,1e-08,237.85,237.84,40.62585063]
[1757653675811,1e-08,237.85,237.84,40.60585063]
[1757653676379,1e-08,237.85,237.84,54.76144464]
[1757653678892,1e-08,237.85,237.84,6.44585063]
[1757653679068,1e-08,237.85,237.84,40.60585063]
[1757653679267,1e-08,237.85,237.84,5.88585063]
[1757653679468,0.65000001,237.85,237.84,4.20450723]
[1757653679690,0.65000001,237.85,237.84,38.92450723]
[1757653680900,0.65000001,237.85,237.84,34.7]
[1757653681103,0.65000001,237.85,237.83,4.20468401]
[1757653681289,1e-08,237.85,237.84,34.7]
[1757653681696,1e-08,237.85,237.83,4.20468401]
[1757653681895,0.65000001,237.85,237.84,34.7]
[1757653682096,0.65,237.84,237.83,30.20468401]
[1757653682297,1e-08,237.85,237.83,64.90468401]
[1757653683108,1e-08,237.85,237.83,65.46468401]
[1757653683492,1e-08,237.85,237.84,1.68148475]
[1757653683697,1e-08,237.85,237.84,36.38148475]
[1757653684194,1e-08,237.85,237.84,36.94148475]
[1757653684588,0.21,237.88,237.84,36.94148475]
[1757653684589,0.21,237.88,237.86,26.0]
[1757653684793,0.21,237.88,237.87,38.90397696]
[1757653685089,0.21,237.88,237.87,4.20397696]
[1757653685318,0.21,237.88,237.87,38.88397696]
[1757653685695,0.86,237.88,237.87,38.88397696]
[1757653685898,0.86,237.88,237.87,4.20397696]
[1757653686093,0.86,237.88,237.87,38.88397696]
[1757653686487,0.86,237.88,237.87,4.20397696]
[1757653686895,0.86,237.88,237.87,34.68]
[1757653688422,0.86,237.88,237.87,38.88397696]
[1757653688913,0.86,237.88,237.87,4.20397696]
[1757653689214,0.86,237.88,237.85,38.88415607]
[1757653689386,0.65,237.87,237.85,38.88415607]
[1757653689586,0.65,237.86,237.85,38.88415607]
[1757653690011,0.65,237.86,237.85,4.20415607]
[1757653692839,0.65,237.86,237.84,38.86450544]
[1757653693006,0.65,237.85,237.84,38.86450544]
[1757653693814,0.65,237.85,237.84,4.20450544]
[1757653696324,0.21,237.88,237.84,4.20450544]
[1757653696523,0.65,237.87,237.84,4.20450544]
[1757653696704,0.65,237.86,237.84,4.20450544]
[1757653697102,0.65,237.85,237.84,4.20450544]
[1757653697506,0.21,237.88,237.84,14.71577351]
[1757653697712,0.21,237.88,237.85,34.64]
[1757653698325,0.21,237.88,237.87,26.0]
[1757653698620,0.21,237.88,237.87,60.64]
[1757653698830,0.21,237.88,237.87,64.84397696]
[1757653700720,0.21,237.88,237.87,66.52539103]
[1757653701116,0.21,237.88,237.87,31.88539103]
[1757653701302,0.21,237.88,237.87,66.52539103]
[1757653702104,0.21,237.88,237.87,31.88539103]
[1757653702412,0.86,237.88,237.87,64.82397696]
[1757653702812,0.92,237.88,237.87,64.82397696]
[1757653703421,0.27,237.88,237.87,64.82397696]
[1757653703920,0.27,237.88,237.87,65.38397696]
[1757653704220,0.27,237.88,237.87,64.82397696]
[1757653704999,0.27,237.88,237.87,30.20397696]
[1757653705195,0.27,237.88,237.87,66.50539103]
[1757653705419,0.27,237.88,237.87,31.88539103]
[1757653705606,0.27,237.88,237.87,66.50539103]
[1757653705811,0.27,237.88,237.87,64.80397696]
[1757653706497,0.27,237.88,237.87,38.80397696]
[1757653706926,0.27,237.88,237.87,64.80397696]
[1757653709827,0.27,237.88,237.87,30.20397696]
[1757653709828,0.98,237.88,237.87,30.20397696]
[1757653710033,0.98,237.88,237.87,4.20397696]
[1757653710216,0.98,237.88,237.87,64.80397696]
[1757653711307,0.27,237.88,237.87,64.80397696]
[1757653712902,0.27,237.88,237.87,30.20397696]
[1757653713106,0.27,237.88,237.87,64.78397696]
[1757653713715,0.27,237.88,237.87,30.76397696]
[1757653713914,0.27,237.88,237.87,65.34397696]
[1757653714333,0.27,237.88,237.87,64.78397696]
[1757653714720,0.27,237.88,237.87,65.34397696]
[1757653714923,0.1,237.89,237.88,13.59559401]
[1757653715120,0.1,237.89,237.88,34.56]
[1757653715337,0.1,237.89,237.87,4.20397696]
[1757653715630,0.1,237.89,237.88,63.70258117]
[1757653715807,0.1,237.89,237.88,67.9063814]
[1757653716003,0.1,237.99,237.88,100.41526317]
[1757653716004,3.24258117,237.99,237.88,100.41526317]
[1757653716208,0.1,237.99,237.92,26.0]
[1757653716435,0.1,237.99,237.96,26.0]
[1757653716634,0.1,237.99,237.97,34.56]
[1757653716845,0.81,237.99,237.96,26.0]
[1757653717149,0.71,237.98,237.97,34.56]
[1757653717351,6.8062,238.0,237.97,34.56]
[1757653717352,1e-08,238.0,237.99,39.59559401]
[1757653717637,1e-08,238.04,238.03,39.59559401]
[1757653717803,1e-08,238.04,238.03,74.15559401]
[1757653718008,1e-08,238.04,238.03,30.20115111]
[1757653718217,2.19175931,238.27,238.04,12.62]
[1757653718420,0.71,238.26,238.16,26.0]
[1757653718639,0.71,238.25,238.16,2.19049376]
[1757653718840,0.71,238.24,238.17,26.0]
[1757653719009,0.71,238.23,238.16,2.19049376]
[1757653719232,0.71,238.22,238.16,2.19049376]
[1757653719431,0.71,238.24,238.16,2.19049376]
[1757653719651,0.71,238.24,238.17,12.59366539]
[1757653719868,0.71,238.23,238.17,12.59366539]
[1757653720073,0.71,238.22,238.17,16.7921732]
[1757653720231,0.1,238.29,238.17,27.28887723]
[1757653720435,0.71,238.28,238.17,27.28887723]
[1757653720753,0.71,238.28,238.18,0.56]
[1757653720936,0.71,238.28,238.17,27.28887723]
[1757653721261,0.71,238.27,238.17,27.28887723]
[1757653721430,0.81,238.29,238.2,26.0]
[1757653721942,0.81,238.29,238.24,26.0]
[1757653722341,0.71,238.28,238.24,26.0]
[1757653722533,0.71,238.28,238.25,12.59049417]
[1757653722733,0.1,238.29,238.25,12.59049417]
[1757653723234,0.1,238.39,238.28,26.0]
[1757653723435,0.71,238.36,238.28,26.0]
[1757653723645,0.71,238.35,238.28,26.0]
[1757653723863,2.60972685,238.34,238.28,26.0]
[1757653724028,0.71,238.33,238.29,4.1965672]
[1757653724229,0.71,238.32,238.27,4.19682734]
[1757653724446,0.71,238.31,238.27,4.19682734]
[1757653724628,1.89972685,238.34,238.27,4.19682734]
[1757653724833,0.71,238.3,238.27,4.19682734]
[1757653725038,4.29488142,238.39,238.25,12.59049417]
[1757653725039,0.71,238.29,238.25,12.59049417]
[1757653725262,2.60972685,238.28,238.13,0.56]
[1757653725443,36.23,238.28,238.22,4.29488142]
[1757653725772,1.89972685,238.24,238.14,4.19921054]
[1757653726065,0.71,238.23,238.14,18.99211833]
[1757653726233,1.89972685,238.24,238.14,18.99211833]
[1757653726234,0.71,238.22,238.14,18.99211833]
[1757653726433,0.71,238.21,238.14,8.49409196]
[1757653726628,0.71,238.2,238.14,4.19921054]
[1757653726849,0.71,238.19,238.12,4.1995226]
[1757653727045,0.71,238.18,238.12,14.69843071]
[1757653727234,0.71,238.21,238.12,14.69843071]
[1757653727437,0.71,238.21,238.12,25.19798702]
[1757653727951,0.71,238.2,238.12,25.19798702]
[1757653728130,0.71,238.23,238.12,25.75798702]
[1757653728442,0.71,238.23,238.15,26.0]
[1757653728647,36.48965719,238.33,238.15,26.0]
[1757653728648,10.48828888,238.37,238.19,26.0]
[1757653728953,0.71,238.29,238.19,26.56]
[1757653729137,2.95904797,238.29,238.12,14.69843071]
[1757653729338,3.66904797,238.28,238.15,26.56]
[1757653729639,2.95904797,238.26,238.15,26.0]
[1757653729848,0.71,238.25,238.15,26.0]
[1757653730050,0.71,238.25,238.16,4.19885791]
[1757653730247,0.71,238.25,238.16,4.75885791]
[1757653730450,0.71,238.3,238.2,26.0]
[1757653730639,2.95904797,238.3,238.2,26.0]
[1757653730843,2.95904797,238.27,238.16,14.69600268]
[1757653731040,0.71,238.26,238.17,12.59472281]
[1757653731246,0.71,238.26,238.18,0.56]
[1757653731745,0.71,238.26,238.16,14.69600268]
[1757653731746,0.71,238.26,238.19,26.0]
[1757653731941,0.71,238.26,238.19,38.59366539]
[1757653732148,0.71,238.26,238.2,4.19815281]
[1757653733161,0.71,238.29,238.2,27.28614298]
[1757653733750,2.95904797,238.26,238.2,12.59260814]
[1757653733947,0.71,238.25,238.2,12.59260814]
[1757653734144,3.66904797,238.25,238.19,30.19818689]
[1757653734350,0.71,238.25,238.19,30.19818689]
[1757653734748,0.68,238.24,238.19,30.19818689]
[1757653734950,0.68,238.23,238.19,30.19818689]
[1757653735367,0.68,238.22,238.19,30.19818689]
[1757653735752,0.68,238.25,238.19,30.19818689]
[1757653736060,0.68,238.24,238.12,4.19956324]
[1757653736263,0.68,238.24,238.14,12.59525159]
[1757653736447,2.95904797,238.22,238.14,12.59525159]
[1757653736646,3.63904797,238.21,238.12,14.69847135]
[1757653736847,2.95904797,238.19,238.12,16.79587252]
[1757653737047,3.63904797,238.19,238.12,4.19956324]
[1757653737367,2.95904797,238.19,238.11,0.1]
[1757653737662,0.68,238.18,238.11,0.1]
[1757653737840,2.95904797,238.16,238.11,0.1]
[1757653738050,0.68,238.15,238.11,0.1]
[1757653738246,0.68,238.14,238.11,0.1]
[1757653738661,0.68,238.18,238.11,4.29964286]
[1757653739165,0.68,238.17,238.11,4.29964286]
[1757653739545,0.68,238.16,238.11,4.29964286]
[1757653739743,0.68,238.15,238.11,0.1]
[1757653739943,0.68,238.14,238.11,0.1]
[1757653740143,2.95904797,238.13,238.11,0.1]
[1757653740345,26.0,238.17,238.11,0.1]
[1757653740346,3.63904797,238.12,238.11,0.1]
[1757653740550,52.71464198,238.12,238.11,0.1]
[1757653740879,13.59559401,238.11,238.02,4.20132761]
[1757653741068,2.95904797,238.09,238.02,4.20132761]
[1757653741266,0.68,238.08,238.02,4.20132761]
[1757653741577,3.63904797,238.08,238.02,4.20132761]
[1757653741747,3.63904797,238.08,238.01,0.1]
[1757653742071,26.0,238.14,238.03,14.70402889]
[1757653742239,2.95904797,238.12,238.03,4.86115111]
[1757653742441,0.68,238.11,238.03,4.86115111]
[1757653742640,2.95904797,238.11,238.03,4.20115111]
[1757653742879,3.63904797,238.1,238.03,4.20115111]
[1757653743076,35.5,238.13,238.01,0.1]
[1757653743077,2.95904797,238.08,238.01,0.1]
[1757653743246,2.95904797,238.07,238.01,4.30145792]
[1757653743449,3.63904797,238.06,238.01,4.30145792]
[1757653743652,0.68,238.1,238.02,0.66]
[1757653743852,3.63904797,238.13,238.02,0.66]
[1757653744267,3.63904797,238.13,238.03,4.20115111]
[1757653744466,0.68,238.13,238.03,14.70402889]
[1757653744781,3.63904797,238.16,238.04,0.66]
[1757653744977,39.11904797,238.16,238.04,0.66]
[1757653745394,39.09904797,238.16,238.04,0.66]
[1757653745557,3.63904797,238.16,238.04,0.66]
[1757653745887,4.87888361,238.16,238.03,14.70402889]
[1757653746183,2.95904797,238.1,238.03,30.20115111]
[1757653746387,3.63904797,238.09,238.03,4.20115111]
[1757653746957,0.68,238.09,238.03,4.20115111]
[1757653747887,2.95904797,238.05,238.01,0.1]
[1757653748180,2.95904797,238.04,238.01,0.1]
[1757653748572,2.95904797,238.02,238.01,0.1]
[1757653748762,0.68,238.03,238.01,0.1]
[1757653748957,35.42,238.06,238.01,4.30140069]
[1757653749177,0.68,238.05,238.01,4.30140069]
[1757653749381,3.63904797,238.05,238.01,0.1]
[1757653750009,3.63904797,238.05,238.01,4.30148346]
[1757653750184,2.95904797,238.05,238.01,4.30148346]
[1757653750380,35.42,238.06,238.01,4.30148346]
[1757653750585,2.95904797,238.1,238.02,0.66]
[1757653750796,2.95904797,238.1,238.01,4.30148346]
[1757653750797,38.33904797,238.1,238.01,14.8052438]
[1757653751000,2.95904797,238.08,238.01,4.30148346]
[1757653751186,3.63904797,238.07,238.01,4.30148346]
[1757653751390,134.05904797,238.14,238.01,4.30148346]
[1757653751391,131.78,238.14,238.04,26.0]
[1757653751599,131.78,238.14,238.05,0.66]
[1757653751804,3.63904797,238.14,238.05,0.66]
[1757653752100,36.06,238.14,238.04,26.0]
[1757653752305,39.01904797,238.14,238.04,26.0]
[1757653752501,3.63904797,238.13,238.05,4.20079815]
[1757653752710,2.95904797,238.11,238.05,4.20079815]
[1757653753082,3.63904797,238.12,238.05,4.20079815]
[1757653753404,0.68,238.16,238.06,26.66]
[1757653753705,0.68,238.19,238.07,0.66]
[1757653753897,0.68,238.19,238.09,26.0]
[1757653754088,0.68,238.19,238.1,0.66]
[1757653754407,35.52,238.21,238.1,0.66]
[1757653754408,0.68,238.21,238.1,0.66]
[1757653754607,2.95904797,238.2,238.11,4.19973961]
[1757653754909,2.95904797,238.19,238.11,4.19973961]
[1757653755114,2.95904797,238.18,238.11,4.19973961]
[1757653755819,3.63904797,238.19,238.11,4.19973961]
[1757653756014,39.15904797,238.19,238.11,4.19973961]
[1757653756217,0.68,238.19,238.11,4.19973961]
[1757653756519,36.18,238.19,238.11,4.19973961]
[1757653756678,36.16,238.19,238.11,14.69908865]
[1757653757105,0.68,238.19,238.11,14.69908865]
[1757653757412,0.68,238.24,238.14,26.0]
[1757653757625,0.68,238.24,238.14,26.66]
[1757653757915,0.68,238.23,238.14,26.0]
[1757653758079,0.68,238.23,238.15,4.19903422]
[1757653758279,0.68,238.23,238.16,26.0]
[1757653758682,0.68,238.23,238.15,4.19903422]
[1757653758883,0.68,238.23,238.15,14.69661977]
[1757653759515,0.68,238.23,238.15,15.35661977]
[1757653760311,2.95904797,238.26,238.15,15.35661977]
[1757653760518,0.68,238.26,238.15,15.35661977]
[1757653760717,39.05904797,238.26,238.15,15.35661977]
[1757653760914,2.95904797,238.24,238.13,4.19924367]
[1757653761102,2.95904797,238.22,238.13,4.19924367]
[1757653761297,3.63904797,238.22,238.13,4.19924367]
[1757653761499,3.63904797,238.21,238.13,4.19924367]
[1757653761708,2.95904797,238.21,238.13,4.19924367]
[1757653761920,0.68,238.2,238.13,4.19924367]
[1757653762798,4.87816814,238.2,238.13,4.19924367]
[1757653764203,7.83721611,238.2,238.13,4.19924367]
[1757653764412,3.63904797,238.2,238.13,4.19924367]
[1757653765101,7.83723107,238.2,238.13,4.19924367]
[1757653765319,3.64904797,238.19,238.13,4.19924367]
[1757653765502,0.69,238.19,238.13,4.19924367]
[1757653767419,0.69,238.23,238.14,0.66]
[1757653767997,0.69,238.23,238.14,26.66]
[1757653768199,0.69,238.23,238.15,4.19903422]
[1757653768617,0.69,238.23,238.15,14.69661977]
[1757653768808,4.88764622,238.23,238.15,4.19903422]
[1757653769011,7.02796364,238.23,238.15,4.19903422]
[1757653769223,42.22796364,238.23,238.15,30.19903422]
[1757653769526,35.2,238.22,238.15,30.19903422]
[1757653770522,35.2,238.22,238.16,0.66]
[1757653771327,35.87,238.25,238.16,0.66]
[1757653771532,43.02635226,238.25,238.16,0.66]
[1757653771746,2.95904797,238.23,238.15,4.19903422]
[1757653771914,3.64904797,238.22,238.15,4.19903422]
[1757653772235,3.64904797,238.21,238.13,4.19922439]
[1757653772707,35.14,238.2,238.13,4.19922439]
[1757653773311,35.14,238.2,238.14,0.66]
[1757653773527,4.19764812,238.23,238.14,0.66]
[1757653773718,35.12,238.22,238.14,0.66]
[1757653774338,3.64904797,238.24,238.14,0.66]
[1757653774523,3.64904797,238.24,238.15,4.19903422]
[1757653774524,35.12,238.23,238.15,4.19903422]
[1757653774700,35.1,238.22,238.15,4.19903422]
[1757653775418,35.77,238.22,238.15,4.19903422]
[1757653775830,35.08,238.22,238.16,0.66]
[1757653776008,35.77,238.22,238.15,4.19903422]
[1757653776208,2.95904797,238.2,238.13,4.19921666]
[1757653776409,0.69,238.19,238.13,4.19921666]
[1757653776627,35.79,238.19,238.12,4.19956324]
[1757653776839,35.79,238.19,238.12,14.69847135]
[1757653777707,0.69,238.19,238.12,14.69847135]
[1757653778109,35.06,238.21,238.13,0.66]
[1757653778539,0.69,238.25,238.15,26.0]
[1757653778842,35.75,238.25,238.16,0.66]
[1757653779414,0.06,238.23,238.16,0.66]
[1757653779620,0.06,238.23,238.2,26.0]
[1757653779934,0.06,238.23,238.21,0.66]
[1757653780114,0.06,238.23,238.22,4.19780035]
[1757653780310,0.16,238.29,238.25,26.0]
[1757653780512,0.06,238.28,238.25,26.0]
[1757653781931,0.06,238.28,238.26,0.66]
[1757653782238,0.06,238.28,238.27,4.19691946]
[1757653782536,0.06,238.28,238.27,4.85691946]
[1757653783338,0.06,238.28,238.27,30.19691946]
[1757653783632,0.06,238.28,238.27,30.85691946]
[1757653784717,0.06,238.28,238.27,4.85691946]
[1757653784920,0.06,238.28,238.27,30.85691946]
[1757653785341,0.06,238.28,238.27,4.85691946]
[1757653787224,0.1,238.29,238.27,4.85691946]
[1757653787548,0.1,238.29,238.28,0.66]
[1757653787728,0.1,238.29,238.27,4.19691946]
[1757653787929,0.1,238.29,238.27,4.85691946]
[1757653788150,0.1,238.29,238.27,4.19691946]
[1757653788354,0.1,238.29,238.28,0.66]
[1757653789851,0.1,238.29,238.27,4.19691946]
[1757653792450,0.69,238.28,238.24,4.19728362]
[1757653792658,0.1,238.29,238.24,15.35090349]
[1757653792954,0.1,238.29,238.25,0.66]
[1757653793246,0.1,238.29,238.26,4.1970956]
[1757653794261,0.1,238.29,238.27,0.66]
[1757653794460,0.1,238.29,238.26,14.68983462]